[Event "Late-Titled-Tuesday-Blitz-May-28-2024"]
[Site "Chess.com"]
[Date "2024.05.28"]
[Round "7"]
[White "shirovin"]
[Black "WindWhistler11"]
[Result "0-1"]
[WhiteElo "2124"]
[BlackElo "2527"]
[TimeControl "180+1"]
[EndTime "15:17:24 PDT"]
[Termination "WindWhistler11 won on time"]

1. e4 {[%clk 0:03:00.9]} 1... e6 {[%clk 0:02:59.7]} 2. d3 {[%clk 0:02:59.2]}
2... d5 {[%clk 0:02:59.1]} 3. Nd2 {[%clk 0:02:59.7]} 3... Nf6 {[%clk 0:02:59.4]}
4. Ngf3 {[%clk 0:03:00.1]} 4... g6 {[%clk 0:02:59.8]} 5. g3 {[%clk 0:02:51.6]}
5... Bg7 {[%clk 0:02:59.5]} 6. Bg2 {[%clk 0:02:51.7]} 6... O-O {[%clk
0:02:59.3]} 7. O-O {[%clk 0:02:50.9]} 7... c5 {[%clk 0:02:59.7]} 8. Re1 {[%clk
0:02:50.9]} 8... Nc6 {[%clk 0:03:00.1]} 9. c3 {[%clk 0:02:45.4]} 9... b6 {[%clk
0:02:59.9]} 10. a4 {[%clk 0:02:43.7]} 10... a5 {[%clk 0:02:59.6]} 11. h4 {[%clk
0:02:39.1]} 11... Ba6 {[%clk 0:02:59.6]} 12. Nf1 {[%clk 0:02:37.4]} 12... Rc8
{[%clk 0:02:46.8]} 13. Qc2 {[%clk 0:02:28.3]} 13... dxe4 {[%clk 0:02:42.8]} 14.
dxe4 {[%clk 0:02:26.9]} 14... Bd3 {[%clk 0:02:42.2]} 15. Qd1 {[%clk 0:02:04.8]}
15... Bxe4 {[%clk 0:02:37]} 16. Qxd8 {[%clk 0:02:03.7]} 16... Rfxd8 {[%clk
0:02:37.9]} 17. Bg5 {[%clk 0:02:03]} 17... Bd3 {[%clk 0:02:12.4]} 18. Rad1
{[%clk 0:01:58]} 18... h6 {[%clk 0:02:08.4]} 19. Bf4 {[%clk 0:01:36.1]} 19...
Nh5 {[%clk 0:01:58.3]} 20. Bc1 {[%clk 0:01:33.3]} 20... Bc2 {[%clk 0:01:51.4]}
21. Rd2 {[%clk 0:01:21.5]} 21... Bxa4 {[%clk 0:01:48.2]} 22. Rxd8+ {[%clk
0:01:03.1]} 22... Rxd8 {[%clk 0:01:42.7]} 23. Be3 {[%clk 0:00:54.3]} 23... Nf6
{[%clk 0:01:36.2]} 24. N1d2 {[%clk 0:00:52.2]} 24... Ng4 {[%clk 0:01:30.2]} 25.
b3 {[%clk 0:00:44.6]} 25... Bb5 {[%clk 0:01:17.1]} 26. c4 {[%clk 0:00:43.4]}
26... Ba6 {[%clk 0:01:16.7]} 27. Ne4 {[%clk 0:00:27.7]} 27... Rd3 {[%clk
0:01:09.8]} 28. Nfd2 {[%clk 0:00:26.5]} 28... Nd4 {[%clk 0:01:03.9]} 29. Bf1
{[%clk 0:00:23.5]} 29... Rxb3 {[%clk 0:00:49.9]} 30. Nxb3 {[%clk 0:00:22.8]}
30... Nxb3 {[%clk 0:00:50.8]} 31. Nd6 {[%clk 0:00:21.7]} 31... a4 {[%clk
0:00:50.5]} 32. Bd3 {[%clk 0:00:19.7]} 32... Ne5 {[%clk 0:00:48.2]} 33. Bb1
{[%clk 0:00:18.2]} 33... Nf3+ {[%clk 0:00:48.3]} 34. Kf1 {[%clk 0:00:17]} 34...
Nxe1 {[%clk 0:00:46.9]} 35. Kxe1 {[%clk 0:00:17.4]} 35... Be5 {[%clk 0:00:45.8]}
36. Nc8 {[%clk 0:00:16.4]} 36... Bxc8 {[%clk 0:00:41.3]} 37. Bc2 {[%clk
0:00:14.7]} 37... Ba6 {[%clk 0:00:37.9]} 38. f4 {[%clk 0:00:11.3]} 38... Bc3+
{[%clk 0:00:37.4]} 39. Kf2 {[%clk 0:00:09.9]} 39... Bxc4 {[%clk 0:00:38.3]} 40.
g4 {[%clk 0:00:08.2]} 40... a3 {[%clk 0:00:37.1]} 0-1

[Event "Late-Titled-Tuesday-Blitz-May-28-2024"]
[Site "Chess.com"]
[Date "2024.05.28"]
[Round "7"]
[White "andrew-blr"]
[Black "Mikhail_Bryakin"]
[Result "1-0"]
[WhiteElo "2644"]
[BlackElo "2833"]
[TimeControl "180+1"]
[EndTime "15:17:27 PDT"]
[Termination "andrew-blr won by resignation"]

1. d4 {[%clk 0:03:00.9]} 1... e5 {[%clk 0:02:48.6]} 2. dxe5 {[%clk 0:02:59.9]}
2... Nc6 {[%clk 0:02:48.7]} 3. Bf4 {[%clk 0:02:58.2]} 3... Qe7 {[%clk
0:02:45.2]} 4. Nf3 {[%clk 0:02:58]} 4... Qb4+ {[%clk 0:02:45.3]} 5. Bd2 {[%clk
0:02:57.7]} 5... Qxb2 {[%clk 0:02:45.3]} 6. Nc3 {[%clk 0:02:58]} 6... Bb4 {[%clk
0:02:44.6]} 7. Rb1 {[%clk 0:02:56.1]} 7... Qxc3 {[%clk 0:02:44.8]} 8. Bxc3
{[%clk 0:02:54.5]} 8... Bxc3+ {[%clk 0:02:45.2]} 9. Nd2 {[%clk 0:02:55.1]} 9...
Nxe5 {[%clk 0:02:45.3]} 10. e3 {[%clk 0:02:48.4]} 10... Ne7 {[%clk 0:02:39.3]}
11. Bd3 {[%clk 0:02:46.6]} 11... d6 {[%clk 0:02:37.8]} 12. O-O {[%clk 0:02:46]}
12... O-O {[%clk 0:02:36.3]} 13. Nc4 {[%clk 0:02:36.7]} 13... b6 {[%clk
0:02:27]} 14. Rb3 {[%clk 0:02:34]} 14... Nxd3 {[%clk 0:02:20.1]} 15. cxd3 {[%clk
0:02:18.6]} 15... Bf6 {[%clk 0:02:19.9]} 16. d4 {[%clk 0:02:15.9]} 16... Be6
{[%clk 0:02:19.1]} 17. Rc3 {[%clk 0:02:16]} 17... Rfd8 {[%clk 0:02:15.7]} 18.
Nd2 {[%clk 0:02:08.3]} 18... c5 {[%clk 0:02:10.9]} 19. Ne4 {[%clk 0:02:03.8]}
19... Nd5 {[%clk 0:02:11.4]} 20. Nxf6+ {[%clk 0:02:03.1]} 20... Nxf6 {[%clk
0:02:12.3]} 21. Qa4 {[%clk 0:01:56.5]} 21... c4 {[%clk 0:01:59.6]} 22. f3 {[%clk
0:01:52.8]} 22... a6 {[%clk 0:01:55.2]} 23. e4 {[%clk 0:01:51.2]} 23... d5
{[%clk 0:01:49.9]} 24. e5 {[%clk 0:01:46.8]} 24... Ne8 {[%clk 0:01:43.5]} 25. g4
{[%clk 0:01:39.7]} 25... b5 {[%clk 0:01:43.2]} 26. Qb4 {[%clk 0:01:37.7]} 26...
Rdb8 {[%clk 0:01:39.5]} 27. Ra3 {[%clk 0:01:32.4]} 27... g6 {[%clk 0:01:26.7]}
28. h3 {[%clk 0:01:31.9]} 28... Ng7 {[%clk 0:01:26.4]} 29. f4 {[%clk 0:01:32.1]}
29... h5 {[%clk 0:01:25.1]} 30. Rg3 {[%clk 0:01:25.1]} 30... a5 {[%clk
0:01:24.1]} 31. Qe7 {[%clk 0:01:24.2]} 31... h4 {[%clk 0:01:18]} 32. Rg2 {[%clk
0:01:23.2]} 32... Re8 {[%clk 0:00:56.5]} 33. Qxh4 {[%clk 0:01:21.6]} 33... c3
{[%clk 0:00:54.3]} 34. f5 {[%clk 0:01:21]} 34... Bd7 {[%clk 0:00:54.3]} 35. e6
{[%clk 0:01:19.3]} 35... Bxe6 {[%clk 0:00:43.8]} 36. fxe6 {[%clk 0:01:15.2]}
36... Nxe6 {[%clk 0:00:44.7]} 37. Qf6 {[%clk 0:01:13]} 37... Ra7 {[%clk
0:00:44]} 38. h4 {[%clk 0:01:12.5]} 38... Rc7 {[%clk 0:00:36.9]} 39. h5 {[%clk
0:01:07.9]} 39... c2 {[%clk 0:00:37.4]} 40. Rc1 {[%clk 0:01:07]} 40... Rec8
{[%clk 0:00:25.4]} 41. hxg6 {[%clk 0:01:02.5]} 41... Ng7 {[%clk 0:00:25.9]} 42.
Rgxc2 {[%clk 0:00:55.1]} 42... Ne8 {[%clk 0:00:14.7]} 43. gxf7+ {[%clk
0:00:50.9]} 43... Rxf7 {[%clk 0:00:15.1]} 44. Qxf7+ {[%clk 0:00:49.9]} 44...
Kxf7 {[%clk 0:00:14.7]} 45. Rxc8 {[%clk 0:00:50.4]} 45... Nd6 {[%clk 0:00:15.2]}
46. R1c7+ {[%clk 0:00:48.5]} 46... Ke6 {[%clk 0:00:15]} 47. Rc6 {[%clk
0:00:49.1]} 47... Kd7 {[%clk 0:00:14.7]} 48. R8c7+ {[%clk 0:00:48.9]} 48... Kd8
{[%clk 0:00:14.7]} 49. Rxd6+ {[%clk 0:00:48.7]} 1-0

[Event "Late-Titled-Tuesday-Blitz-May-28-2024"]
[Site "Chess.com"]
[Date "2024.05.28"]
[Round "7"]
[White "chess_sharparchitect"]
[Black "el008"]
[Result "0-1"]
[WhiteElo "2339"]
[BlackElo "2551"]
[TimeControl "180+1"]
[EndTime "15:17:28 PDT"]
[Termination "el008 won on time"]

1. c4 {[%clk 0:03:00.9]} 1... b6 {[%clk 0:02:55.7]} 2. Nc3 {[%clk 0:03:00.3]}
2... Bb7 {[%clk 0:02:56.4]} 3. e4 {[%clk 0:02:57.4]} 3... e5 {[%clk 0:02:56.1]}
4. Nf3 {[%clk 0:02:51.3]} 4... d6 {[%clk 0:02:56.4]} 5. d4 {[%clk 0:02:49.9]}
5... exd4 {[%clk 0:02:57.3]} 6. Nxd4 {[%clk 0:02:48.9]} 6... Nf6 {[%clk
0:02:57.6]} 7. Bd3 {[%clk 0:02:34.1]} 7... Nc6 {[%clk 0:02:57.8]} 8. Nf5 {[%clk
0:02:07.1]} 8... Ne5 {[%clk 0:02:56.4]} 9. O-O {[%clk 0:02:05.9]} 9... Nxd3
{[%clk 0:02:55.6]} 10. Qxd3 {[%clk 0:02:05.2]} 10... g6 {[%clk 0:02:55.2]} 11.
Ne3 {[%clk 0:01:31.2]} 11... Bg7 {[%clk 0:02:54.5]} 12. Bd2 {[%clk 0:01:28.6]}
12... O-O {[%clk 0:02:54.5]} 13. Rfe1 {[%clk 0:01:27.9]} 13... Re8 {[%clk
0:02:54.6]} 14. f3 {[%clk 0:01:27.6]} 14... Nd7 {[%clk 0:02:54.7]} 15. Ned5
{[%clk 0:01:23.9]} 15... c6 {[%clk 0:02:53.3]} 16. Nf4 {[%clk 0:01:17.9]} 16...
Ne5 {[%clk 0:02:51.6]} 17. Qf1 {[%clk 0:01:15.1]} 17... a5 {[%clk 0:02:36.2]}
18. Rad1 {[%clk 0:01:14.8]} 18... a4 {[%clk 0:02:35]} 19. Be3 {[%clk 0:01:00.8]}
19... Ba6 {[%clk 0:02:35]} 20. b3 {[%clk 0:00:49.1]} 20... axb3 {[%clk
0:02:35.9]} 21. axb3 {[%clk 0:00:49.3]} 21... Nxf3+ {[%clk 0:02:31.2]} 22. Qxf3
{[%clk 0:00:48.2]} 22... Bxc3 {[%clk 0:02:32.1]} 23. Rf1 {[%clk 0:00:35.3]}
23... Be5 {[%clk 0:02:18.3]} 24. Nd3 {[%clk 0:00:22.3]} 24... Qe7 {[%clk
0:02:15.9]} 25. Bxb6 {[%clk 0:00:20.1]} 25... Bg7 {[%clk 0:02:14.1]} 26. Rde1
{[%clk 0:00:15.8]} 26... Rab8 {[%clk 0:02:14.6]} 27. c5 {[%clk 0:00:13.6]} 27...
Bxd3 {[%clk 0:02:13.7]} 28. Qxd3 {[%clk 0:00:12.7]} 28... dxc5 {[%clk
0:02:14.2]} 29. Ba5 {[%clk 0:00:10.4]} 29... Bd4+ {[%clk 0:02:14.5]} 30. Kh1
{[%clk 0:00:10.1]} 30... Be5 {[%clk 0:02:14.9]} 31. Rf3 {[%clk 0:00:09.9]} 31...
Qh4 {[%clk 0:02:15.1]} 32. h3 {[%clk 0:00:09.1]} 32... Ra8 {[%clk 0:02:14]} 33.
Bd2 {[%clk 0:00:08.3]} 33... Rad8 {[%clk 0:02:14.3]} 34. Qe2 {[%clk 0:00:07.4]}
34... Qe7 {[%clk 0:02:12.9]} 35. Ref1 {[%clk 0:00:07.5]} 35... Rf8 {[%clk
0:02:13.2]} 36. Be3 {[%clk 0:00:06]} 36... Bd4 {[%clk 0:02:13.3]} 37. Bh6 {[%clk
0:00:04.9]} 37... Bg7 {[%clk 0:02:13.3]} 38. Bxg7 {[%clk 0:00:03.8]} 38... Kxg7
{[%clk 0:02:14.2]} 39. Qb2+ {[%clk 0:00:02.6]} 39... Kg8 {[%clk 0:02:14.6]} 40.
Qc3 {[%clk 0:00:02.4]} 40... Rd4 {[%clk 0:02:13.7]} 41. Re3 {[%clk 0:00:01]}
41... Re8 {[%clk 0:02:12.7]} 42. e5 {[%clk 0:00:01]} 42... Rd5 {[%clk
0:02:12.9]} 43. e6 {[%clk 0:00:01]} 43... fxe6 {[%clk 0:02:13.8]} 44. Ref3
{[%clk 0:00:00.6]} 44... Rf5 {[%clk 0:02:13.5]} 45. Rxf5 {[%clk 0:00:01]} 45...
exf5 {[%clk 0:02:14.4]} 46. Qc4+ {[%clk 0:00:01.3]} 46... Kg7 {[%clk 0:02:14.1]}
47. Qc3+ {[%clk 0:00:01.2]} 47... Qe5 {[%clk 0:02:14.2]} 48. Qc2 {[%clk
0:00:01]} 48... Qd5 {[%clk 0:02:12.8]} 49. Rd1 {[%clk 0:00:01.1]} 49... Qe4
{[%clk 0:02:12.5]} 50. Qc3+ {[%clk 0:00:01.3]} 50... Qe5 {[%clk 0:02:12.5]} 51.
Qc2 {[%clk 0:00:01.1]} 51... Re7 {[%clk 0:02:08.7]} 52. Qc4 {[%clk 0:00:01.1]}
52... Ra7 {[%clk 0:02:06.3]} 53. Qd3 {[%clk 0:00:01.1]} 53... h5 {[%clk
0:02:03]} 54. Qd8 {[%clk 0:00:01]} 54... Kh6 {[%clk 0:01:58]} 55. Rd3 {[%clk
0:00:00.8]} 55... Ra1+ {[%clk 0:01:55.2]} 56. Rd1 {[%clk 0:00:01.4]} 56... Rxd1+
{[%clk 0:01:56.1]} 57. Qxd1 {[%clk 0:00:01]} 57... Qd4 {[%clk 0:01:57]} 58. Qc1+
{[%clk 0:00:01]} 58... Kg7 {[%clk 0:01:57.6]} 59. Qf1 {[%clk 0:00:01]} 59... f4
{[%clk 0:01:58]} 60. Qa6 {[%clk 0:00:01]} 60... Qd5 {[%clk 0:01:57.2]} 61. Qb7+
{[%clk 0:00:01.1]} 61... Kf6 {[%clk 0:01:57.2]} 62. Qc8 {[%clk 0:00:01]} 62...
Ke5 {[%clk 0:01:56.9]} 63. Qh8+ {[%clk 0:00:01]} 63... Ke4 {[%clk 0:01:57]} 64.
Qe8+ {[%clk 0:00:01.1]} 64... Kf5 {[%clk 0:01:55.8]} 65. Qf8+ {[%clk 0:00:01]}
65... Ke4 {[%clk 0:01:53.4]} 66. Qe8+ {[%clk 0:00:01.4]} 66... Kd4 {[%clk
0:01:54]} 67. Qxg6 {[%clk 0:00:01.4]} 67... Kc3 {[%clk 0:01:53.8]} 68. Qg7+
{[%clk 0:00:01]} 68... Kxb3 {[%clk 0:01:54.1]} 69. Qf6 {[%clk 0:00:01]} 69... c4
{[%clk 0:01:54.4]} 70. Qxf4 {[%clk 0:00:01]} 70... c3 {[%clk 0:01:55]} 71. Qb8+
{[%clk 0:00:01.1]} 71... Ka2 {[%clk 0:01:54.6]} 72. Qa7+ {[%clk 0:00:01.2]}
72... Kb2 {[%clk 0:01:54.7]} 73. Qb6+ {[%clk 0:00:01.3]} 73... Qb3 {[%clk
0:01:54.8]} 74. Qf2+ {[%clk 0:00:01]} 74... c2 {[%clk 0:01:55.1]} 75. Qf6+
{[%clk 0:00:01.1]} 75... Kb1 {[%clk 0:01:55.3]} 76. Qf5 {[%clk 0:00:01]} 76...
Ka2 {[%clk 0:01:53.7]} 77. Qf2 {[%clk 0:00:00.7]} 77... Qb2 {[%clk 0:01:51.9]}
0-1

[Event "Late-Titled-Tuesday-Blitz-May-28-2024"]
[Site "Chess.com"]
[Date "2024.05.28"]
[Round "7"]
[White "NMJeevanK"]
[Black "ImportedItalianMaple"]
[Result "1/2-1/2"]
[WhiteElo "2680"]
[BlackElo "2537"]
[TimeControl "180+1"]
[EndTime "15:17:30 PDT"]
[Termination "Game drawn - insufficient material"]

1. e4 {[%clk 0:03:00.9]} 1... c5 {[%clk 0:03:00]} 2. b3 {[%clk 0:02:59.6]} 2...
g6 {[%clk 0:02:53.5]} 3. Bb2 {[%clk 0:02:59.8]} 3... Nf6 {[%clk 0:02:52.8]} 4.
e5 {[%clk 0:03:00.1]} 4... Nd5 {[%clk 0:02:53.4]} 5. Bc4 {[%clk 0:02:56.6]} 5...
Nb6 {[%clk 0:02:49.9]} 6. e6 {[%clk 0:02:42.9]} 6... f6 {[%clk 0:02:49.7]} 7.
exd7+ {[%clk 0:02:41.6]} 7... Bxd7 {[%clk 0:02:44.6]} 8. Nf3 {[%clk 0:02:39.8]}
8... Bg7 {[%clk 0:02:37.6]} 9. O-O {[%clk 0:02:39.4]} 9... Nxc4 {[%clk
0:02:37.8]} 10. bxc4 {[%clk 0:02:40.3]} 10... O-O {[%clk 0:02:38]} 11. Nc3
{[%clk 0:02:38.1]} 11... Nc6 {[%clk 0:02:30.6]} 12. Re1 {[%clk 0:02:38]} 12...
e5 {[%clk 0:02:24.1]} 13. Nd5 {[%clk 0:02:37.8]} 13... Be6 {[%clk 0:02:23.6]}
14. Ne3 {[%clk 0:02:31.4]} 14... Qd7 {[%clk 0:02:15.4]} 15. d3 {[%clk
0:02:29.3]} 15... Nd4 {[%clk 0:01:55.3]} 16. Nxd4 {[%clk 0:02:24.1]} 16... cxd4
{[%clk 0:01:55.8]} 17. Nf1 {[%clk 0:02:23.7]} 17... b5 {[%clk 0:01:53.8]} 18.
cxb5 {[%clk 0:02:22.6]} 18... Qxb5 {[%clk 0:01:54.2]} 19. Bxd4 {[%clk
0:02:22.8]} 19... Rfd8 {[%clk 0:01:47]} 20. Be3 {[%clk 0:02:14]} 20... Qa5
{[%clk 0:01:30.9]} 21. Qd2 {[%clk 0:02:08.4]} 21... Qxd2 {[%clk 0:01:25.8]} 22.
Nxd2 {[%clk 0:02:09.3]} 22... Rac8 {[%clk 0:01:25.5]} 23. Rec1 {[%clk
0:02:08.2]} 23... f5 {[%clk 0:01:22.2]} 24. Rab1 {[%clk 0:02:08]} 24... Rc7
{[%clk 0:01:17.7]} 25. Nb3 {[%clk 0:02:04.1]} 25... Rdc8 {[%clk 0:01:04.6]} 26.
c4 {[%clk 0:02:02.2]} 26... e4 {[%clk 0:01:02.4]} 27. dxe4 {[%clk 0:01:56.4]}
27... Rxc4 {[%clk 0:01:02.9]} 28. exf5 {[%clk 0:01:49.7]} 28... Bxf5 {[%clk
0:01:02.6]} 29. Rxc4 {[%clk 0:01:49.8]} 29... Rxc4 {[%clk 0:01:03.3]} 30. Rd1
{[%clk 0:01:48]} 30... Rc2 {[%clk 0:00:53.2]} 31. a4 {[%clk 0:01:27.8]} 31... a6
{[%clk 0:00:34.1]} 32. Nc5 {[%clk 0:01:26.8]} 32... Rc4 {[%clk 0:00:29.3]} 33.
h3 {[%clk 0:01:24.8]} 33... Bf8 {[%clk 0:00:22.6]} 34. Rd8 {[%clk 0:01:17.1]}
34... Kf7 {[%clk 0:00:22.4]} 35. Nxa6 {[%clk 0:01:05.9]} 35... Rxa4 {[%clk
0:00:21.7]} 36. Nc5 {[%clk 0:01:06.3]} 36... Ra1+ {[%clk 0:00:19]} 37. Kh2
{[%clk 0:01:06.5]} 37... Be7 {[%clk 0:00:19.5]} 38. Rd2 {[%clk 0:01:04.6]} 38...
Bxc5 {[%clk 0:00:18.6]} 39. Bxc5 {[%clk 0:01:04.5]} 39... Rc1 {[%clk 0:00:18.8]}
40. Be3 {[%clk 0:01:04.5]} 40... Rc2 {[%clk 0:00:19.3]} 41. Rd4 {[%clk
0:01:03.9]} 41... h5 {[%clk 0:00:19.8]} 42. g4 {[%clk 0:01:02.2]} 42... hxg4
{[%clk 0:00:20.7]} 43. hxg4 {[%clk 0:01:02.9]} 43... Be6 {[%clk 0:00:21.1]} 44.
Kg3 {[%clk 0:01:03.4]} 44... Rc4 {[%clk 0:00:20.1]} 45. Rf4+ {[%clk 0:00:49.7]}
45... Rxf4 {[%clk 0:00:20.1]} 46. Kxf4 {[%clk 0:00:50.6]} 46... Kf6 {[%clk
0:00:20.5]} 47. Bd4+ {[%clk 0:00:50.6]} 47... Kf7 {[%clk 0:00:20.9]} 48. Kg5
{[%clk 0:00:51.4]} 48... Bd5 {[%clk 0:00:21.5]} 49. f4 {[%clk 0:00:51.3]} 49...
Be4 {[%clk 0:00:21.9]} 50. Be5 {[%clk 0:00:51]} 50... Bd3 {[%clk 0:00:22.1]} 51.
Kh6 {[%clk 0:00:50.8]} 51... Bc2 {[%clk 0:00:22.6]} 52. Kg5 {[%clk 0:00:50.4]}
52... Bb1 {[%clk 0:00:22.8]} 53. Bc3 {[%clk 0:00:50.3]} 53... Bc2 {[%clk
0:00:23.3]} 54. Kh4 {[%clk 0:00:51]} 54... Bb1 {[%clk 0:00:23.9]} 55. Kg3 {[%clk
0:00:51.4]} 55... Bc2 {[%clk 0:00:24.6]} 56. Kf3 {[%clk 0:00:52]} 56... Bb1
{[%clk 0:00:25.3]} 57. Ke3 {[%clk 0:00:52.5]} 57... Bc2 {[%clk 0:00:26]} 58. Kd2
{[%clk 0:00:53]} 58... Bb1 {[%clk 0:00:26.7]} 59. Be5 {[%clk 0:00:53.5]} 59...
Be4 {[%clk 0:00:27.2]} 60. Ke3 {[%clk 0:00:53.8]} 60... Bb1 {[%clk 0:00:27.9]}
61. Kd4 {[%clk 0:00:54.1]} 61... Bc2 {[%clk 0:00:28.5]} 62. Kc3 {[%clk
0:00:54.1]} 62... Bb1 {[%clk 0:00:29.2]} 63. Kd4 {[%clk 0:00:53.9]} 63... Bc2
{[%clk 0:00:29.3]} 64. Kc5 {[%clk 0:00:54.4]} 64... Bb1 {[%clk 0:00:29.9]} 65.
Kd6 {[%clk 0:00:55]} 65... Bc2 {[%clk 0:00:30.6]} 66. Bc3 {[%clk 0:00:55.1]}
66... Bb1 {[%clk 0:00:31.2]} 67. Ke5 {[%clk 0:00:56]} 67... Bc2 {[%clk
0:00:31.8]} 68. Bd4 {[%clk 0:00:55.8]} 68... Bd1 {[%clk 0:00:31.6]} 69. f5
{[%clk 0:00:56.7]} 69... Bxg4 {[%clk 0:00:31.5]} 70. fxg6+ {[%clk 0:00:54.4]}
70... Kxg6 {[%clk 0:00:32.4]} 1/2-1/2

[Event "Late-Titled-Tuesday-Blitz-May-28-2024"]
[Site "Chess.com"]
[Date "2024.05.28"]
[Round "7"]
[White "TokChess"]
[Black "MrEscacs"]
[Result "1-0"]
[WhiteElo "2494"]
[BlackElo "2185"]
[TimeControl "180+1"]
[EndTime "15:17:30 PDT"]
[Termination "TokChess won on time"]

1. e4 {[%clk 0:03:00.9]} 1... Nf6 {[%clk 0:02:59.4]} 2. e5 {[%clk 0:02:59.1]}
2... Nd5 {[%clk 0:02:59.5]} 3. d4 {[%clk 0:02:59.6]} 3... d6 {[%clk 0:02:59.5]}
4. Nf3 {[%clk 0:02:58.7]} 4... Bg4 {[%clk 0:02:59.2]} 5. exd6 {[%clk 0:02:55.9]}
5... cxd6 {[%clk 0:02:55.7]} 6. Be2 {[%clk 0:02:55.4]} 6... e6 {[%clk
0:02:55.5]} 7. O-O {[%clk 0:02:54.9]} 7... Be7 {[%clk 0:02:55.9]} 8. c3 {[%clk
0:02:55]} 8... O-O {[%clk 0:02:55.7]} 9. Nbd2 {[%clk 0:02:54.1]} 9... Nc6 {[%clk
0:02:55.2]} 10. a4 {[%clk 0:02:42.6]} 10... a5 {[%clk 0:02:52.8]} 11. Nc4 {[%clk
0:02:41]} 11... Nb6 {[%clk 0:02:04.3]} 12. Ne3 {[%clk 0:02:40.1]} 12... Bxf3
{[%clk 0:02:02.7]} 13. Bxf3 {[%clk 0:02:40]} 13... d5 {[%clk 0:02:02.9]} 14. Re1
{[%clk 0:02:29.9]} 14... Bg5 {[%clk 0:01:24.1]} 15. Qc2 {[%clk 0:02:20.1]} 15...
Ne7 {[%clk 0:01:12.5]} 16. Qb3 {[%clk 0:02:19.2]} 16... Rc8 {[%clk 0:00:57.9]}
17. g3 {[%clk 0:02:18.9]} 17... Bxe3 {[%clk 0:00:56.4]} 18. Bxe3 {[%clk
0:02:17.4]} 18... Qc7 {[%clk 0:00:53.6]} 19. Bf4 {[%clk 0:02:15.1]} 19... Qc6
{[%clk 0:00:52.6]} 20. h4 {[%clk 0:02:13.6]} 20... Nc4 {[%clk 0:00:52.6]} 21. h5
{[%clk 0:02:10.5]} 21... h6 {[%clk 0:00:51.2]} 22. Kh2 {[%clk 0:02:05.4]} 22...
Nf5 {[%clk 0:00:50.6]} 23. Bg4 {[%clk 0:01:51.9]} 23... Nfd6 {[%clk 0:00:39.9]}
24. Re2 {[%clk 0:01:51.3]} 24... b5 {[%clk 0:00:37]} 25. axb5 {[%clk 0:01:50.5]}
25... Qxb5 {[%clk 0:00:34.2]} 26. Qc2 {[%clk 0:01:34.6]} 26... Ra8 {[%clk
0:00:28.6]} 27. Bh3 {[%clk 0:01:17.9]} 27... a4 {[%clk 0:00:26.3]} 28. g4 {[%clk
0:01:18.3]} 28... Ne4 {[%clk 0:00:23.2]} 29. Bg2 {[%clk 0:01:10.5]} 29... Nf6
{[%clk 0:00:20.3]} 30. Bf3 {[%clk 0:01:06.1]} 30... Rfc8 {[%clk 0:00:19.3]} 31.
g5 {[%clk 0:01:05.9]} 31... hxg5 {[%clk 0:00:18.8]} 32. Bxg5 {[%clk 0:01:06.8]}
32... Qb3 {[%clk 0:00:17]} 33. Qc1 {[%clk 0:00:55.5]} 33... a3 {[%clk
0:00:16.6]} 34. bxa3 {[%clk 0:00:56.4]} 34... Rxa3 {[%clk 0:00:16]} 35. h6
{[%clk 0:00:50.3]} 35... Qxc3 {[%clk 0:00:15.5]} 36. Rxa3 {[%clk 0:00:44.1]}
36... Nxa3 {[%clk 0:00:14.2]} 37. Qf4 {[%clk 0:00:42.5]} 37... Nc4 {[%clk
0:00:07.3]} 38. hxg7 {[%clk 0:00:41.1]} 38... Ne8 {[%clk 0:00:05.7]} 39. Bh5
{[%clk 0:00:35.2]} 39... Nxg7 {[%clk 0:00:05.7]} 40. Bxf7+ {[%clk 0:00:28.5]}
40... Kh7 {[%clk 0:00:04.7]} 41. Qh4+ {[%clk 0:00:28.6]} 1-0

[Event "Late-Titled-Tuesday-Blitz-May-28-2024"]
[Site "Chess.com"]
[Date "2024.05.28"]
[Round "7"]
[White "VD_coach"]
[Black "Thjop"]
[Result "1/2-1/2"]
[WhiteElo "2535"]
[BlackElo "2630"]
[TimeControl "180+1"]
[EndTime "15:17:32 PDT"]
[Termination "Game drawn - insufficient material"]

1. d4 {[%clk 0:03:00.1]} 1... d5 {[%clk 0:03:00.1]} 2. c4 {[%clk 0:02:59.3]}
2... c6 {[%clk 0:02:58.8]} 3. cxd5 {[%clk 0:02:52.6]} 3... cxd5 {[%clk
0:02:59.7]} 4. Nf3 {[%clk 0:02:52.8]} 4... Nf6 {[%clk 0:02:58.7]} 5. Nc3 {[%clk
0:02:53.7]} 5... Nc6 {[%clk 0:02:58.6]} 6. Ne5 {[%clk 0:02:53.5]} 6... Qb6
{[%clk 0:02:49.3]} 7. Nxc6 {[%clk 0:02:51]} 7... bxc6 {[%clk 0:02:46.3]} 8. e3
{[%clk 0:02:51]} 8... e6 {[%clk 0:02:37.3]} 9. Bd3 {[%clk 0:02:50.8]} 9... c5
{[%clk 0:02:32.6]} 10. Bb5+ {[%clk 0:02:48]} 10... Bd7 {[%clk 0:02:31.9]} 11.
Bxd7+ {[%clk 0:02:47.7]} 11... Nxd7 {[%clk 0:02:32.8]} 12. dxc5 {[%clk
0:02:46.4]} 12... Nxc5 {[%clk 0:02:28.6]} 13. O-O {[%clk 0:02:44.3]} 13... Be7
{[%clk 0:02:28.1]} 14. Na4 {[%clk 0:02:44.2]} 14... Qb5 {[%clk 0:02:10.2]} 15.
Nxc5 {[%clk 0:02:43.4]} 15... Bxc5 {[%clk 0:02:06.3]} 16. b3 {[%clk 0:02:43.2]}
16... O-O {[%clk 0:02:03.4]} 17. Bb2 {[%clk 0:02:43.4]} 17... Rfc8 {[%clk
0:02:00.6]} 18. Rc1 {[%clk 0:02:42.9]} 18... Bf8 {[%clk 0:02:00.6]} 19. Qd4
{[%clk 0:02:41.5]} 19... a5 {[%clk 0:01:52.4]} 20. g3 {[%clk 0:02:39.6]} 20...
Qb4 {[%clk 0:01:49.1]} 21. Rxc8 {[%clk 0:02:35.1]} 21... Rxc8 {[%clk 0:01:48.1]}
22. Qxb4 {[%clk 0:02:20.4]} 22... axb4 {[%clk 0:01:49]} 23. Rc1 {[%clk
0:02:20.4]} 23... Rxc1+ {[%clk 0:01:43.7]} 24. Bxc1 {[%clk 0:02:20.1]} 24... e5
{[%clk 0:01:44.3]} 25. Bb2 {[%clk 0:02:12]} 25... f6 {[%clk 0:01:44.6]} 26. f4
{[%clk 0:02:12.1]} 26... Bd6 {[%clk 0:01:43.9]} 27. Kf2 {[%clk 0:02:10.6]} 27...
Kf7 {[%clk 0:01:44.1]} 28. Kf3 {[%clk 0:02:09.2]} 28... Ke6 {[%clk 0:01:44.3]}
29. e4 {[%clk 0:01:59.4]} 29... dxe4+ {[%clk 0:01:09]} 30. Kxe4 {[%clk
0:01:58.6]} 30... f5+ {[%clk 0:01:09.4]} 31. Kd3 {[%clk 0:01:58.1]} 31... Kd5
{[%clk 0:01:03.9]} 32. fxe5 {[%clk 0:01:54.7]} 32... Bxe5 {[%clk 0:01:03.6]} 33.
Bc1 {[%clk 0:01:18.2]} 33... h6 {[%clk 0:01:03.4]} 34. a4 {[%clk 0:01:13.1]}
34... bxa3 {[%clk 0:00:59.4]} 35. Bxa3 {[%clk 0:01:12.9]} 35... f4 {[%clk
0:00:56.6]} 36. gxf4 {[%clk 0:01:10.7]} 36... Bxf4 {[%clk 0:00:57.5]} 37. h3
{[%clk 0:01:11]} 37... g5 {[%clk 0:00:54]} 38. Bf8 {[%clk 0:01:01.3]} 38... h5
{[%clk 0:00:53.8]} 39. Bh6 {[%clk 0:01:01.3]} 39... Ke5 {[%clk 0:00:44.3]} 40.
b4 {[%clk 0:01:01.1]} 40... Kf5 {[%clk 0:00:42.6]} 41. b5 {[%clk 0:01:00.8]}
41... Bb8 {[%clk 0:00:39.7]} 42. b6 {[%clk 0:00:52.2]} 42... g4 {[%clk
0:00:39.8]} 43. hxg4+ {[%clk 0:00:33.8]} 43... Kxg4 {[%clk 0:00:40.7]} 44. Ke2
{[%clk 0:00:22]} 44... h4 {[%clk 0:00:40.1]} 45. Kf2 {[%clk 0:00:22]} 45... h3
{[%clk 0:00:39.1]} 46. Kg1 {[%clk 0:00:22]} 46... Kg3 {[%clk 0:00:37.4]} 47. Kh1
{[%clk 0:00:21.6]} 47... Kf3 {[%clk 0:00:37.2]} 48. Bg5 {[%clk 0:00:20.4]} 48...
Ke4 {[%clk 0:00:37.3]} 49. Bd8 {[%clk 0:00:20.7]} 49... Kd5 {[%clk 0:00:37.5]}
50. Bc7 {[%clk 0:00:21.1]} 50... Kc6 {[%clk 0:00:36.7]} 51. Bxb8 {[%clk
0:00:20.6]} 51... Kxb6 {[%clk 0:00:37.2]} 52. Kh2 {[%clk 0:00:21.5]} 52... Kb7
{[%clk 0:00:37.2]} 53. Kxh3 {[%clk 0:00:22.4]} 1/2-1/2